[Event "WYCC 2018 O14"]
[Site "Halkidiki"]
[Date "2018.10.23"]
[Round "5"]
[White "Suleymanli, Aydin"]
[Black "Galkin, Gleb"]
[Result "1-0"]
[ECO "A00"]
[WhiteElo "2313"]
[BlackElo "2134"]
[Annotator "NA"]
[PlyCount "95"]
[EventDate "2018.10.20"]
[EventType "swiss"]
[EventCountry "GRE"]
[SourceTitle "playchess.com"]
[Source "ChessBase"]
[SourceQuality "1"]
[TimeControl "40/5400+30:1800+30"]

1. b4 {[%emt 0:00:00]} d5 {[%emt 0:00:00]} 2. Bb2 {[%emt 0:00:00]} Nf6 {[%emt 0:00:33]} 3. Nf3 {[%emt 0:00:54]} Bf5 {[%emt 0:01:33]} 4. e3 {[%emt 0:00:15]} e6 {[%emt 0:01:18]} 5. a3 {[%emt 0:00:09]} Bd6 {[%emt 0:04:16]} 6. d3 {[%emt 0:09:11] A00: Irregular Openings} (6. c4 c6 7. Be2 Nbd7 8. O-O h6 9. cxd5 cxd5 10. d3 O-O 11. Nbd2 a5 12. bxa5 Qxa5 13. Nb3 Qb6 14. Nfd4 Bh7 15. a4 Rfc8 16. Nb5 Bb4 17. Qb1 e5 18. Nc1 Bc5 19. Nb3 Bb4 20. Nc1 Bc5 21. Nb3 Bb4 22. Nc1 {½-½ (22) Mirzoev,A (2571)-Topak,E (2308) Ankara 2011}) 6... Nbd7 {[%emt 0:01:55]} 7. Nbd2 {[%emt 0:01:28]} O-O {[%emt 0:06:38]} 8. c4 {[%emt 0:09:33]} c6 {[%emt 0:08:42]} 9. Be2 {[%emt 0:25:10]} e5 $146 {[%emt 0:06:34]} ({Predecessor:} 9... a5 10. b5 cxb5 11. cxb5 Nc5 12. Nb3 Nxb3 13. Qxb3 {0-1 (42) Zhao,P-Song,R (1985) Chalkidiki 2003}) 10. O-O {[%emt 0:03:49]} Qe7 {[%emt 0:06:57]} 11. e4 {[%emt 0:06:41]} dxe4 {[%emt 0:03:02]} 12. Nh4 {[%emt 0:00:22]} Be6 {[%emt 0:07:35]} 13. dxe4 {[%emt 0:01:01]} Bc7 {[%emt 0:01:29]} 14. Nhf3 {[%emt 0:01:55]} h6 {[%emt 0:05:20]} 15. Qc2 {[%emt 0:02:18]} g5 {[%emt 0:04:45]} 16. g3 {[%emt 0:03:29]} Rad8 {[%emt 0:02:57]} 17. Ne1 {[%emt 0:03:50]} Ne8 {[%emt 0:08:31]} 18. Ng2 {[%emt 0:02:05]} Nd6 {[%emt 0:01:46]} 19. Ne3 {[%emt 0:04:01]} f6 {[%emt 0:05:03]} 20. c5 {[%emt 0:00:27]} Nf7 {[%emt 0:01:51]} 21. Nf5 {[%emt 0:04:46]} Bxf5 {[%emt 0:00:24]} 22. exf5 {[%emt 0:00:04]} Rfe8 {[%emt 0:08:43]} 23. Ne4 {[%emt 0:00:18]} Nf8 {[%emt 0:00:17]} 24. Bc4 {[%emt 0:00:26]} Kg7 {[%emt 0:00:28]} 25. Qe2 {[%emt 0:01:14]} b5 {[%emt 0:02:09]} 26. Bb3 {[%emt 0:00:11]} a6 {[%emt 0:04:26]} 27. Qf3 {[%emt 0:05:25]} Rd7 {[%emt 0:01:26]} 28. a4 {[%emt 0:05:04]} Red8 {[%emt 0:00:19]} 29. Qh5 {[%emt 0:01:30]} Rd3 {[%emt 0:04:04]} 30. Bc2 {[%emt 0:00:16]} R3d5 {[%emt 0:01:20]} 31. axb5 {[%emt 0:00:11]} axb5 {[%emt 0:00:09]} 32. Ra7 {[%emt 0:00:55]} R8d7 {[%emt 0:00:34]} 33. Ra6 {[%emt 0:00:12]} Rd2 {[%emt 0:00:52]} 34. Nxd2 {[%emt 0:00:53]} Rxd2 {[%emt 0:00:03]} 35. Rc1 {[%emt 0:02:08]} e4 {[%emt 0:00:25]} 36. Bc3 {[%emt 0:00:53]} Rd5 {[%emt 0:01:01]} 37. Re1 {[%emt 0:00:29]} Be5 {[%emt 0:00:34]} 38. Bxe5 {[%emt 0:05:54]} Rxe5 {[%emt 0:00:07]} 39. Bb3 {[%emt 0:00:46]} Nd8 {[%emt 0:00:50]} 40. Rea1 {[%emt 0:00:00]} e3 {[%emt 0:00:00]} 41. Ra7 $18 {[%emt 0:02:07]} exf2+ {[%emt 0:04:57]} 42. Kf1 {[%emt 0:00:48]} Nb7 {[%emt 0:03:01]} 43. Qf7+ {[%emt 0:00:08]} Qxf7 {[%emt 0:00:23]} 44. Bxf7 {[%emt 0:00:04]} Re7 {[%emt 0:00:30]} 45. Bd5 {[%emt 0:00:26]} Rc7 46. Bxc6 {[%emt 0:00:05]} Rxc6 {[%emt 0:01:23]} 47. Rxb7+ {[%emt 0:00:05]} Kg8 {[%emt 0:00:07]} 48. Ra8 {[%emt 0:00:08]} 1-0

[Event "WYCC 2018 O14"]
[Site "Halkidiki"]
[Date "2018.10.23"]
[Round "5"]
[White "Popov, Konstantin"]
[Black "Turgut, Aydin"]
[Result "0-1"]
[ECO "C84"]
[WhiteElo "2304"]
[BlackElo "2156"]
[Annotator "ChessBase"]
[PlyCount "134"]
[EventDate "2018.10.20"]
[EventType "swiss"]
[EventCountry "GRE"]
[SourceTitle "playchess.com"]
[Source "ChessBase"]
[SourceQuality "1"]
[TimeControl "40/5400+30:1800+30"]

1. e4 {[%emt 0:00:00]} e5 {[%emt 0:00:00]} 2. Nf3 {[%emt 0:00:00]} Nc6 {[%emt 0:00:00]} 3. Bb5 {[%emt 0:00:02]} a6 {[%emt 0:00:00]} 4. Ba4 {[%emt 0:00:05]} Nf6 {[%emt 0:00:06]} 5. O-O {[%emt 0:00:29]} Be7 {[%emt 0:00:08]} 6. d3 {[%emt 0:00:24]} b5 {[%emt 0:00:19]} 7. Bb3 {[%emt 0:00:08]} d6 {[%emt 0:00:24]} 8. a4 {[%emt 0:00:29]} b4 {[%emt 0:00:14]} 9. a5 {[%emt 0:00:46]} O-O {[%emt 0:00:26]} 10. Nbd2 {[%emt 0:00:48]} Be6 {[%emt 0:00:14]} 11. Nc4 {[%emt 0:00:35]} Rb8 {[%emt 0:03:11]} 12. Be3 {[%emt 0:01:38]} Qc8 {[%emt 0:03:19]} 13. Qe2 {[%emt 0:06:03]} h6 {[%emt 0:11:06]} 14. h3 {[%emt 0:00:34]} Rd8 {[%emt 0:00:15]} 15. Nfd2 {[%emt 0:01:16]} d5 {[%emt 0:15:23]} 16. Ba4 {[%emt 0:04:47]} dxc4 {[%emt 0:11:48]} 17. Bxc6 {[%emt 0:00:09]} Bd7 {[%emt 0:11:33]} 18. Bxd7 {[%emt 0:05:46]} cxd3 {[%emt 0:00:10]} 19. Bxc8 {[%emt 0:09:54]} dxe2 {[%emt 0:00:10]} 20. Bxa6 {[%emt 0:00:28]} exf1=Q+ {[%emt 0:00:29]} 21. Bxf1 {[%emt 0:00:13]} Nd7 {[%emt 0:11:56]} 22. Nb3 {[%emt 0:18:27]} Bg5 {[%emt 0:07:50]} 23. Bxg5 {[%emt 0:11:20]} hxg5 {[%emt 0:00:18]} 24. Bc4 {[%emt 0:14:37]} c6 {[%emt 0:04:24]} 25. a6 {[%emt 0:05:16]} Ra8 {[%emt 0:06:36]} 26. Bd3 {[%emt 0:03:36]} Rdb8 {[%emt 0:01:33]} 27. Kh2 {[%emt 0:03:52]} Rb6 {[%emt 0:01:59]} 28. Rd1 {[%emt 0:02:20]} Kf8 {[%emt 0:01:17]} 29. Bc4 {[%emt 0:02:19]} Ke7 {[%emt 0:01:36]} 30. Kg3 {[%emt 0:00:30]} Ra7 {[%emt 0:01:08]} 31. Kg4 {[%emt 0:01:18]} c5 {[%emt 0:03:21]} 32. Kf3 {[%emt 0:00:34]} f6 {[%emt 0:01:47]} 33. Be2 {[%emt 0:01:02]} Rd6 {[%emt 0:01:09]} 34. Ra1 {[%emt 0:00:09]} g6 {[%emt 0:01:19]} 35. Ra5 {[%emt 0:00:22]} Nb8 {[%emt 0:00:50]} 36. Nxc5 {[%emt 0:02:47]} Nc6 {[%emt 0:00:14]} 37. Ra4 {[%emt 0:01:32]} Nd4+ {[%emt 0:00:04]} 38. Ke3 {[%emt 0:00:17]} Nxc2+ {[%emt 0:00:10]} 39. Kf3 {[%emt 0:00:05]} Nd4+ {[%emt 0:01:18]} 40. Ke3 {[%emt 0:00:00]} Nc2+ {[%emt 0:00:00]} 41. Kf3 {[%emt 0:00:23]} f5 {[%emt 0:20:56]} 42. Kg3 {[%emt 0:15:41]} Rd2 {[%emt 0:03:11]} 43. Bf3 {[%emt 0:00:58]} f4+ {[%emt 0:05:00]} 44. Kh2 {[%emt 0:02:59]} Kf6 {[%emt 0:03:04]} 45. Nb3 {[%emt 0:02:48]} Rd6 {[%emt 0:00:31]} 46. Nc5 {[%emt 0:02:55]} Rc6 {[%emt 0:00:46]} 47. Ra5 {[%emt 0:00:06]} Nd4 {[%emt 0:00:24]} 48. Bd1 {[%emt 0:00:45]} b3 {[%emt 0:00:51]} 49. Nxb3 {[%emt 0:06:57]} Rcxa6 {[%emt 0:00:34]} 50. Nxd4 {[%emt 0:01:35]} Rxa5 {[%emt 0:00:03]} 51. Nc6 {[%emt 0:00:09]} R5a6 {[%emt 0:00:39]} 52. Nxa7 {[%emt 0:00:18]} Rxa7 {[%emt 0:00:03]} 53. g3 {[%emt 0:02:57]} Ra2 {[%emt 0:00:22]} 54. Kg2 {[%emt 0:00:23]} Rxb2 {[%emt 0:00:18]} 55. Kf3 {[%emt 0:00:42]} Rd2 {[%emt 0:00:21]} 56. Ba4 {[%emt 0:00:14]} g4+ {[%emt 0:02:07]} 57. hxg4 {[%emt 0:00:47]} Rd3+ {[%emt 0:00:15]} 58. Kg2 {[%emt 0:01:07]} f3+ {[%emt 0:00:49]} 59. Kf1 {[%emt 0:01:15]} Kg5 {[%emt 0:00:34]} 60. Ke1 {[%emt 0:00:44]} Kxg4 {[%emt 0:00:12]} 61. Be8 {[%emt 0:00:30]} Rd6 {[%emt 0:00:34]} 62. Bb5 {[%emt 0:00:17]} Rd4 {[%emt 0:00:43]} 63. Bf1 {[%emt 0:00:39]} Rxe4+ {[%emt 0:00:11]} 64. Kd2 {[%emt 0:00:03]} Ra4 {[%emt 0:00:31]} 65. Bb5 {[%emt 0:00:15]} Ra2+ {[%emt 0:00:46]} 66. Ke3 {[%emt 0:00:05]} Ra3+ {[%emt 0:00:13]} 67. Ke4 {[%emt 0:00:09]} Kh3 {[%emt 0:00:13] Kd4} 0-1

[Event "WYCC 2018 O14"]
[Site "Halkidiki"]
[Date "2018.10.23"]
[Round "5"]
[White "Tadic, Stefan"]
[Black "Kacharava, Nikolozi"]
[Result "0-1"]
[ECO "C41"]
[WhiteElo "2295"]
[BlackElo "2373"]
[Annotator "NA"]
[PlyCount "94"]
[EventDate "2018.10.20"]
[EventType "swiss"]
[EventCountry "GRE"]
[SourceTitle "playchess.com"]
[Source "ChessBase"]
[SourceQuality "1"]
[TimeControl "40/5400+30:1800+30"]

1. e4 {[%emt 0:00:00]} d6 {[%emt 0:00:00]} 2. d4 {[%emt 0:00:29]} Nf6 {[%emt 0:00:24]} 3. Nc3 {[%emt 0:00:52]} e5 {[%emt 0:00:39]} 4. Nf3 {[%emt 0:01:34]} Nbd7 {[%emt 0:00:42]} 5. Bc4 {[%emt 0:01:24]} Be7 {[%emt 0:00:27]} 6. O-O {[%emt 0:01:19]} O-O {[%emt 0:00:26]} 7. a4 {[%emt 0:02:26]} c6 {[%emt 0:00:59]} 8. Ba2 {[%emt 0:05:07]} b6 {[%emt 0:05:02]} 9. Re1 {[%emt 0:16:34]} a6 {[%emt 0:01:18]} 10. h3 {[%emt 0:08:03]} Rb8 {[%emt 0:01:05]} 11. d5 $11 {[%emt 0:07:47] LiveBook: 8 Games} cxd5 {[%emt 0:08:06]} 12. exd5 {[%emt 0:04:32]} Ne8 {[%emt 0:03:39]} 13. Qe2 {[%emt 0:04:45]} g6 {[%emt 0:07:29]} 14. Bh6 {[%emt 0:05:26]} Ng7 {[%emt 0:00:53]} 15. Bc4 {[%emt 0:01:55]} Ra8 {[%emt 0:04:20]} 16. Na2 {[%emt 0:05:09]} a5 {[%emt 0:07:02]} 17. Nd4 {[%emt 0:05:57]} Nb8 {[%emt 0:09:07]} 18. Nc6 {[%emt 0:08:53]} Qc7 {[%emt 0:02:13]} 19. Nc3 {[%emt 0:00:56]} Ba6 {[%emt 0:04:06]} 20. Bxa6 {[%emt 0:03:21]} Nxa6 {[%emt 0:00:31]} 21. Nb5 {[%emt 0:00:04]} Qd7 {[%emt 0:02:44]} 22. Nxe7+ {[%emt 0:09:52]} Qxe7 {[%emt 0:00:08]} 23. Ra3 {[%emt 0:00:47]} Nc5 {[%emt 0:05:53]} 24. Qg4 {[%emt 0:01:02]} f5 {[%emt 0:02:46]} 25. Bg5 {[%emt 0:00:56]} Qd7 {[%emt 0:03:16]} 26. Qh4 {[%emt 0:00:21]} f4 {[%emt 0:03:00]} 27. Qg4 Nf5 28. h4 {[%emt 0:02:17]} Nxa4 {[%emt 0:03:40]} 29. Qe2 {[%emt 0:02:08]} Nc5 {[%emt 0:05:08]} 30. g4 {[%emt 0:00:04]} Ne3 {[%emt 0:01:28]} 31. f3 {[%emt 0:00:58]} Kg7 {[%emt 0:04:19]} 32. Rxe3 {[%emt 0:00:22]} fxe3 {[%emt 0:01:24]} 33. Bxe3 {[%emt 0:00:02]} Rf6 {[%emt 0:02:04]} 34. Bg5 {[%emt 0:00:15]} Rf7 {[%emt 0:00:33]} 35. c4 {[%emt 0:01:00]} Raf8 {[%emt 0:00:50]} 36. Rf1 {[%emt 0:00:41]} e4 {[%emt 0:02:17]} 37. Nd4 {[%emt 0:00:21]} exf3 {[%emt 0:01:04]} 38. Ne6+ {[%emt 0:00:08]} Nxe6 {[%emt 0:01:10]} 39. Qxe6 {[%emt 0:00:24]} Re8 {[%emt 0:02:58]} 40. Qxd7 {[%emt 0:00:00]} Rxd7 {[%emt 0:00:00]} 41. Rxf3 {[%emt 0:01:05]} Re4 {[%emt 0:02:06]} 42. Bf6+ {[%emt 0:03:16]} Kg8 {[%emt 0:02:29]} 43. g5 {[%emt 0:01:13]} Rxh4 {[%emt 0:05:40]} 44. Rb3 {[%emt 0:00:41]} Rb7 {[%emt 0:05:10]} 45. c5 {[%emt 0:02:17]} dxc5 {[%emt 0:01:07]} 46. Re3 {[%emt 0:00:16]} Rd7 {[%emt 0:01:44]} 47. Rd3 {[%emt 0:01:00]} Rd4 {[%emt 0:04:52]} 0-1

[Event "WYCC 2018 O14"]
[Site "Halkidiki"]
[Date "2018.10.23"]
[Round "5"]
[White "Ognean, Mihnea-Ionut"]
[Black "Wang, Alex"]
[Result "1-0"]
[ECO "E92"]
[WhiteElo "2291"]
[BlackElo "2076"]
[Annotator "NA"]
[PlyCount "47"]
[EventDate "2018.10.20"]
[EventType "swiss"]
[EventCountry "GRE"]
[SourceTitle "playchess.com"]
[Source "ChessBase"]
[SourceQuality "1"]
[TimeControl "40/5400+30:1800+30"]

1. d4 {[%emt 0:00:00]} Nf6 {[%emt 0:00:00]} 2. c4 {[%emt 0:00:00]} g6 {[%emt 0:00:00]} 3. Nc3 {[%emt 0:00:00]} Bg7 {[%emt 0:00:00]} 4. e4 {[%emt 0:00:00]} d6 {[%emt 0:00:00]} 5. Nf3 {[%emt 0:00:27]} O-O {[%emt 0:00:00]} 6. Be2 {[%emt 0:00:03]} e5 7. d5 {[%emt 0:00:12]} a5 {[%emt 0:00:28]} 8. Bg5 {[%emt 0:00:26]} h6 {[%emt 0:01:03]} 9. Be3 {[%emt 0:00:07]} Na6 {[%emt 0:13:35] E92: King's Indian: Classical: 6 Be2 e5: 7 dxe5, 7 Be3 and Petrosian System without 7...Nbd7} (9... Ng4 10. Bd2 f5 11. h3 Nf6 12. exf5 gxf5 13. g3 Na6 14. Qc1 Kh7 15. Nh4 Nc5 16. Be3 Nfe4 17. Nxe4 Nxe4 {½-½ (42) Korobov,A (2678)-Kovalev,V (2650) Poikovsky 2018}) 10. Nd2 {[%emt 0:00:12]} Nd7 {[%emt 0:04:56]} 11. g4 {[%emt 0:10:43]} f5 {[%emt 0:04:58]} 12. exf5 {[%emt 0:02:00]} gxf5 {[%emt 0:00:19]} 13. gxf5 {[%emt 0:00:36]} Ndc5 {[%emt 0:02:44]} 14. Rg1 {[%emt 0:08:15]} Kh8 {[%emt 0:02:48] [#]} 15. Bg4 $1 $146 {[%emt 0:00:18]} ({Predecessor:} 15. Nde4 Bxf5 16. Ng3 Bg6 17. Nh5 Bxh5 18. Bxh5 {1-0 (48) Ulko,J (2470)-Stets,D (2420) Senden 2008}) 15... Rxf5 {[%emt 0:27:57]} 16. Nde4 {[%emt 0:14:08]} Nxe4 {[%emt 0:16:12]} 17. Nxe4 {[%emt 0:00:10]} Rf7 {[%emt 0:00:10]} 18. Bxc8 {[%emt 0:01:02]} Rxc8 $4 {[%emt 0:01:08]} (18... Qxc8 $16 19. Kd2 Qf5) 19. Qh5 {[%emt 0:08:03]} Qf8 {[%emt 0:00:25]} 20. Ke2 {[%emt 0:15:07]} Rf5 {[%emt 0:06:30]} 21. Qh3 {[%emt 0:01:49]} Re8 {[%emt 0:04:55]} 22. Rxg7 {[%emt 0:03:31]} Qxg7 {[%emt 0:00:23]} 23. Qxf5 {[%emt 0:00:07]} Rf8 $18 {[%emt 0:00:47]} 24. Qh5 {[%emt 0:00:12]} 1-0

[Event "WYCC 2018 O14"]
[Site "Halkidiki"]
[Date "2018.10.23"]
[Round "5"]
[White "Cohen Revivo, Shoham"]
[Black "Runets, Ivan"]
[Result "0-1"]
[ECO "B40"]
[WhiteElo "2289"]
[BlackElo "2047"]
[Annotator "NA"]
[PlyCount "100"]
[EventDate "2018.10.20"]
[EventType "swiss"]
[EventCountry "GRE"]
[SourceTitle "playchess.com"]
[Source "ChessBase"]
[SourceQuality "1"]
[TimeControl "40/5400+30:1800+30"]

1. e4 {[%emt 0:00:02]} c5 {[%emt 0:01:32]} 2. Nf3 {[%emt 0:00:30]} e6 {[%emt 0:00:11]} 3. Qe2 {[%emt 0:00:53]} d6 {[%emt 0:01:14]} 4. g3 {[%emt 0:00:22]} b6 {[%emt 0:05:54]} 5. Bg2 {[%emt 0:01:05]} Bb7 {[%emt 0:00:46]} 6. O-O {[%emt 0:01:12] LiveBook: 22 Games} Nf6 {[%emt 0:01:55]} 7. d3 {[%emt 0:00:07]} Be7 {[%emt 0:00:17]} 8. Nbd2 {[%emt 0:03:07]} O-O {[%emt 0:02:03]} 9. b3 {[%emt 0:10:38]} Nc6 {[%emt 0:04:28]} 10. Bb2 {[%emt 0:00:09]} Qc7 $11 {[%emt 0:00:48]} 11. Rfe1 {[%emt 0:07:00]} Rfd8 {[%emt 0:13:01]} 12. Nf1 {[%emt 0:03:52]} b5 {[%emt 0:08:18]} 13. Ne3 {[%emt 0:12:16]} Nd7 {[%emt 0:08:18]} 14. c3 {[%emt 0:16:15]} b4 {[%emt 0:10:48]} 15. cxb4 {[%emt 0:01:33]} Nxb4 {[%emt 0:01:11]} 16. a3 {[%emt 0:03:10]} Nc6 {[%emt 0:00:27]} 17. Qc2 {[%emt 0:02:46]} Rac8 {[%emt 0:06:42]} 18. Rac1 {[%emt 0:07:44]} Qb8 {[%emt 0:05:34]} 19. Qd1 {[%emt 0:10:42]} Nde5 {[%emt 0:05:37]} 20. Nc4 {[%emt 0:04:23]} Ba6 {[%emt 0:05:23]} 21. Rb1 {[%emt 0:08:32]} Rd7 {[%emt 0:02:18]} 22. Bf1 {[%emt 0:00:48]} Bf6 {[%emt 0:02:23]} 23. Nfd2 {[%emt 0:00:45]} Rb7 {[%emt 0:02:29]} 24. f4 {[%emt 0:00:22]} Nxc4 {[%emt 0:00:49]} 25. dxc4 {[%emt 0:00:06]} Bxb2 {[%emt 0:01:34]} 26. Rxb2 {[%emt 0:00:01]} Nd4 {[%emt 0:00:38]} 27. Re3 {[%emt 0:01:16]} Rb6 {[%emt 0:03:43]} 28. Nf3 {[%emt 0:01:04]} Nxf3+ {[%emt 0:00:27]} 29. Qxf3 {[%emt 0:00:38]} Bb7 {[%emt 0:00:25]} 30. Bg2 {[%emt 0:00:58]} Qc7 {[%emt 0:00:58]} 31. Qd1 {[%emt 0:00:19]} a5 {[%emt 0:00:24]} 32. Rd2 {[%emt 0:00:25]} Ba6 {[%emt 0:01:16]} 33. Red3 {[%emt 0:01:06]} Rd8 {[%emt 0:00:11]} 34. a4 {[%emt 0:00:19]} h6 {[%emt 0:02:02]} 35. Kf2 {[%emt 0:01:11]} Qe7 {[%emt 0:00:40]} 36. e5 {[%emt 0:01:20]} d5 {[%emt 0:00:06]} 37. cxd5 {[%emt 0:00:04]} Bxd3 {[%emt 0:00:06]} 38. d6 {[%emt 0:00:08]} Rbxd6 {[%emt 0:00:20]} 39. exd6 {[%emt 0:00:51]} Qxd6 {[%emt 0:00:14]} 40. Kg1 {[%emt 0:00:00]} Qd4+ {[%emt 0:00:00]} 41. Kh1 {[%emt 0:01:16]} Qe3 {[%emt 0:00:47]} 42. Ra2 {[%emt 0:14:17]} Rb8 {[%emt 0:03:38]} 43. Ra1 {[%emt 0:04:12]} Be4 {[%emt 0:01:02]} 44. Ra3 {[%emt 0:08:10]} c4 {[%emt 0:00:51]} 45. Bxe4 {[%emt 0:02:23]} Qxe4+ {[%emt 0:00:04]} 46. Kg1 {[%emt 0:00:04]} Qe3+ {[%emt 0:00:05]} 47. Kf1 {[%emt 0:00:06]} cxb3 {[%emt 0:01:13]} 48. Ra1 {[%emt 0:00:41]} Rc8 {[%emt 0:01:14]} 49. Rb1 {[%emt 0:00:20]} Rc2 {[%emt 0:00:23]} 50. Qd8+ {[%emt 0:01:03]} Kh7 {[%emt 0:00:10]} 0-1

[Event "WYCC 2018 O14"]
[Site "Halkidiki"]
[Date "2018.10.23"]
[Round "5"]
[White "Gines Esteo, Pedro Antonio"]
[Black "Nogerbek, Kazybek"]
[Result "1/2-1/2"]
[ECO "D05"]
[WhiteElo "2288"]
[BlackElo "2316"]
[Annotator "NA"]
[PlyCount "64"]
[EventDate "2018.10.20"]
[EventType "swiss"]
[EventCountry "GRE"]
[SourceTitle "playchess.com"]
[Source "ChessBase"]
[SourceQuality "1"]
[TimeControl "40/5400+30:1800+30"]

1. d4 {[%emt 0:00:00]} Nf6 {[%emt 0:00:00]} 2. Nf3 {[%emt 0:00:00]} e6 {[%emt 0:00:07]} 3. e3 {[%emt 0:00:00]} c5 {[%emt 0:01:13]} 4. Bd3 {[%emt 0:00:09]} d5 {[%emt 0:00:09]} 5. b3 {[%emt 0:00:12]} Nc6 {[%emt 0:02:12]} 6. Bb2 {[%emt 0:00:26]} Bd6 {[%emt 0:00:10]} 7. O-O {[%emt 0:00:10]} O-O {[%emt 0:00:06]} 8. Nbd2 {[%emt 0:00:37]} b6 {[%emt 0:00:11]} 9. a3 {[%emt 0:02:27]} Bb7 {[%emt 0:00:26]} 10. Qe2 {[%emt 0:03:23]} Rc8 {[%emt 0:02:54]} 11. Rfd1 {[%emt 0:09:21]} cxd4 $11 {[%emt 0:06:09]} 12. exd4 {[%emt 0:00:45]} Ne7 {[%emt 0:06:59]} 13. Ne5 {[%emt 0:10:53]} Ng6 {[%emt 0:02:02]} 14. g3 {[%emt 0:07:05]} Qc7 {[%emt 0:05:24]} 15. Rac1 {[%emt 0:06:38]} Bxe5 {[%emt 0:08:58]} 16. dxe5 {[%emt 0:00:27]} Nd7 {[%emt 0:00:09]} 17. f4 {[%emt 0:05:04]} Nc5 {[%emt 0:04:29]} 18. Nf3 {[%emt 0:05:07]} Nxd3 {[%emt 0:03:04]} 19. cxd3 {[%emt 0:03:49]} Qd7 {[%emt 0:01:31]} 20. Nd4 {[%emt 0:05:15]} Ne7 {[%emt 0:01:55]} 21. a4 {[%emt 0:04:46]} Nf5 {[%emt 0:14:45]} 22. Nxf5 {[%emt 0:07:41]} exf5 {[%emt 0:00:10]} 23. Ba3 {[%emt 0:11:41]} Rxc1 {[%emt 0:04:13]} 24. Rxc1 {[%emt 0:00:06]} Rc8 {[%emt 0:00:06]} 25. Qb2 {[%emt 0:03:18]} Rxc1+ {[%emt 0:10:54]} 26. Qxc1 {[%emt 0:00:06]} d4 {[%emt 0:00:09]} 27. Qc4 {[%emt 0:07:10]} Qd5 {[%emt 0:01:25]} 28. Qxd5 {[%emt 0:00:10]} Bxd5 {[%emt 0:00:06]} 29. b4 {[%emt 0:01:01]} Bb3 {[%emt 0:00:08]} 30. a5 {[%emt 0:01:05]} bxa5 {[%emt 0:00:05]} 31. bxa5 {[%emt 0:00:05]} Bc2 {[%emt 0:00:07]} 32. Bc5 {[%emt 0:00:08]} a6 {[%emt 0:00:05]} 1/2-1/2

[Event "WYCC 2018 O14"]
[Site "Halkidiki"]
[Date "2018.10.23"]
[Round "5"]
[White "Kushagra Mohan"]
[Black "Lopez Varela, Pablo"]
[Result "1/2-1/2"]
[ECO "C41"]
[WhiteElo "2283"]
[BlackElo "2172"]
[Annotator "NA"]
[PlyCount "58"]
[EventDate "2018.10.20"]
[EventType "swiss"]
[EventCountry "GRE"]
[SourceTitle "playchess.com"]
[Source "ChessBase"]
[SourceQuality "1"]
[TimeControl "40/5400+30:1800+30"]

1. e4 {[%emt 0:00:00]} e5 {[%emt 0:00:00]} 2. Nf3 {[%emt 0:00:00]} d6 {[%emt 0:00:00]} 3. d4 {[%emt 0:00:00]} exd4 {[%emt 0:00:00]} 4. Nxd4 {[%emt 0:00:00]} Nf6 {[%emt 0:00:00]} 5. Nc3 {[%emt 0:00:00]} Be7 {[%emt 0:00:00]} 6. Bf4 {[%emt 0:00:00]} O-O {[%emt 0:00:00]} 7. Qd2 {[%emt 0:00:00]} d5 {[%emt 0:01:11]} 8. Ndb5 {[%emt 0:02:11]} Bb4 {[%emt 0:00:22]} 9. O-O-O {[%emt 0:04:07]} c6 {[%emt 0:00:39]} 10. Nc7 {[%emt 0:00:28]} Nxe4 {[%emt 0:00:05]} 11. Qe3 {[%emt 0:00:04]} Bxc3 {[%emt 0:04:07]} 12. bxc3 {[%emt 0:02:41]} Qe7 {[%emt 0:00:05]} 13. Kb2 {[%emt 0:11:19]} g5 {[%emt 0:02:31] [#]} 14. Nxa8 $2 {[%emt 0:03:21]} (14. Bg3 $1 $18 f5 15. Nxa8) 14... gxf4 {[%emt 0:00:39]} 15. Qxf4 {[%emt 0:02:38]} Qc5 {[%emt 0:12:51]} 16. Rd3 {[%emt 0:02:26]} Na6 $14 {[%emt 0:03:08]} 17. f3 {[%emt 0:17:40]} Nf2 {[%emt 0:11:38]} 18. Rd4 {[%emt 0:01:54]} Nxh1 {[%emt 0:18:53]} 19. Qg5+ {[%emt 0:00:33]} Kh8 {[%emt 0:00:52]} 20. Qf6+ {[%emt 0:00:16]} Kg8 {[%emt 0:00:05]} 21. Bd3 {[%emt 0:00:52]} Re8 {[%emt 0:00:42]} 22. Bxh7+ {[%emt 0:22:05]} Kf8 {[%emt 0:01:35]} 23. Bd3 {[%emt 0:02:09]} Nf2 {[%emt 0:14:52]} 24. Bg6 {[%emt 0:04:37]} Be6 {[%emt 0:01:43]} 25. Rh4 {[%emt 0:01:03]} Qb5+ {[%emt 0:01:55]} 26. Ka1 {[%emt 0:00:55]} Qf1+ {[%emt 0:02:20]} 27. Kb2 {[%emt 0:00:02]} Qb5+ {[%emt 0:03:07]} 28. Ka1 {[%emt 0:00:36]} Qf1+ {[%emt 0:00:35]} 29. Kb2 {[%emt 0:00:02]} Qb5+ {[%emt 0:01:07]} 1/2-1/2